bitfinex/quotes_ETHUSD_20251008
["timestamp","ask_amount","ask_price","bid_price","bid_amount"]
[1759884130446,0.012,4473.9,4473.5,4.861]
[1759884130656,0.012,4473.9,4473.6,0.02235336]
[1759884131073,0.012,4473.9,4473.7,2.67584427]
[1759884131279,0.012,4473.9,4473.8,2.99795236]
[1759884131866,0.012,4473.9,4473.8,5.23318862]
[1759884132175,0.012,4473.9,4473.8,5.21083626]
[1759884132371,0.012,4473.9,4473.8,2.9756]
[1759884132577,0.012,4473.9,4473.8,2.535]
[1759884132982,0.012,4473.9,4473.8,4.861]
[1759884133578,0.012,4473.9,4473.8,7.53683626]
[1759884133785,0.012,4473.9,4473.8,8.525172]
[1759884134280,0.002,4473.9,4473.8,12.52395332]
[1759884134465,0.01,4474.9,4473.9,0.6336]
[1759884134667,1.08454383,4476.2,4475.7,2.23423859]
[1759884134893,1.18804145,4476.8,4474.7,3.88758132]
[1759884134894,0.60252435,4476.3,4475.8,2.535]
[1759884135098,0.60252435,4476.3,4475.8,2.7885]
[1759884135273,1.08454383,4476.7,4475.8,2.9802]
[1759884135473,0.60252435,4476.6,4475.3,0.4452]
[1759884135673,0.60252435,4476.6,4475.8,2.326]
[1759884135875,0.60252435,4476.6,4475.8,4.861]
[1759884136281,0.60252435,4476.7,4475.8,7.09523745]
[1759884136501,0.60252435,4476.8,4475.8,5.3062]
[1759884136703,0.60252435,4476.8,4475.8,4.861]
[1759884137887,0.058,4476.9,4475.6,0.4452]
[1759884137888,0.61252435,4476.9,4475.6,0.4452]
[1759884138082,0.048,4476.5,4475.1,0.4452]
[1759884138393,0.048,4476.5,4475.2,4.859]
[1759884138606,0.048,4476.5,4475.4,2.23439904]
[1759884138812,0.048,4476.5,4475.5,2.534]
[1759884139016,0.01,4476.9,4475.4,2.23439904]
[1759884139210,0.01,4476.9,4475.5,4.859]
[1759884139391,0.058,4476.9,4475.3,0.4452]
[1759884139597,0.058,4476.9,4475.4,4.859]
[1759884139911,0.058,4476.9,4475.0,0.4452]
[1759884139912,0.048,4476.5,4475.0,0.4452]
[1759884140108,0.01,4476.9,4472.9,2.23566085]
[1759884140109,0.048,4476.1,4474.7,1.48607535]
[1759884140424,0.60252435,4476.7,4474.8,4.88134736]
[1759884140588,0.048,4476.5,4474.8,5.3042]
[1759884140788,0.048,4476.5,4474.8,7.5389357]
[1759884141015,0.048,4476.5,4474.9,2.23468394]
[1759884141218,0.048,4476.5,4475.0,0.02234636]
[1759884141427,0.048,4476.5,4474.6,11.54]
[1759884141606,0.048,4475.8,4474.6,11.54]
[1759884141809,0.048,4475.8,4474.7,4.859]
[1759884141990,0.60252435,4476.5,4474.7,6.54342]
[1759884142192,0.65052435,4476.6,4475.2,2.23453011]
[1759884142386,0.048,4476.6,4475.3,4.76847794]
[1759884142615,0.048,4476.6,4475.4,2.534]
[1759884142825,0.048,4476.6,4475.4,2.55634437]
[1759884143022,0.60252435,4476.7,4475.4,2.55634437]
[1759884143326,0.01,4476.9,4475.6,2.2342892]
[1759884143521,0.058,4476.9,4475.8,2.23423745]
[1759884143728,0.01,4476.9,4475.8,2.23423745]
[1759884144026,0.01,4476.9,4475.8,2.70177982]
[1759884144502,0.1112,4476.5,4475.8,2.81297982]
[1759884144887,0.1112,4476.5,4475.8,7.67197982]
[1759884145096,0.01,4476.9,4475.8,8.37765019]
[1759884146126,0.01,4476.9,4475.9,0.6336]
[1759884146333,0.01,4476.9,4476.0,2.534]
[1759884146546,0.01,4476.9,4476.0,2.9792]
[1759884146747,0.01,4476.9,4476.1,2.50032111]
[1759884146950,0.01,4476.9,4476.2,4.859]
[1759884147258,0.01,4476.9,4476.8,2.23373838]
[1759884147457,0.01,4476.9,4476.8,4.76773838]
[1759884147623,0.01,4476.9,4476.8,5.21293838]
[1759884147825,0.01,4476.9,4476.8,5.9576132]
[1759884148821,0.01,4476.9,4476.8,6.5912132]
[1759884149329,0.01,4476.9,4476.8,18.1312132]
[1759884149543,1e-08,4476.9,4476.8,18.58881464]
[1759884149725,1e-08,4476.9,4476.8,16.05481464]
[1759884149926,1e-08,4476.9,4476.8,20.91381464]
[1759884150240,1e-08,4476.9,4476.8,30.55481464]
[1759884150756,1e-08,4476.9,4476.8,35.41181464]
[1759884151960,1e-08,4476.9,4476.8,30.55481464]
[1759884152255,1e-08,4476.9,4476.8,35.41181464]
[1759884152621,1e-08,4476.9,4476.8,30.55481464]
[1759884152821,1e-08,4476.9,4476.8,35.41181464]
[1759884153680,1e-08,4476.9,4476.8,44.7532247]
[1759884154894,1e-08,4476.9,4476.8,39.8962247]
[1759884155090,1e-08,4476.9,4476.8,40.0074247]
[1759884155289,1e-08,4476.9,4476.8,44.8644247]
[1759884155893,1e-08,4476.9,4476.8,40.0074247]
[1759884156182,1e-08,4476.9,4476.8,44.8644247]
[1759884156348,1e-08,4476.9,4476.8,40.0074247]
[1759884156680,1e-08,4476.9,4476.8,14.67653982]
[1759884156987,1e-08,4476.9,4476.8,14.21893838]
[1759884157479,1e-08,4476.9,4476.8,19.07593838]
[1759884158048,0.01,4478.9,4476.9,0.6336]
[1759884158243,0.01,4478.9,4477.6,2.23330077]
[1759884158449,0.01,4478.9,4477.7,4.78859056]
[1759884158691,0.01,4478.9,4477.7,4.76625767]
[1759884158895,0.01,4478.9,4477.7,2.533]
[1759884159095,0.01,4478.9,4477.7,2.55533289]
[1759884159400,0.01,4478.9,4477.7,3.00053289]
[1759884159782,0.01,4478.9,4477.7,2.533]
[1759884160097,0.01,4478.9,4476.9,2.23368111]
[1759884160098,0.0479,4478.4,4476.9,2.23368111]
[1759884160297,0.0479,4478.2,4476.8,0.4746]
[1759884160510,0.0479,4478.2,4476.4,0.08945814]
[1759884160793,1.92,4477.6,4477.1,4.857]
[1759884160966,0.0479,4477.6,4477.1,4.857]
[1759884161578,1.92,4478.3,4476.3,0.4746]
[1759884161791,1.92,4477.7,4477.1,4.87933588]
[1759884161986,0.0479,4478.2,4477.1,4.857]
[1759884161987,1.92,4478.0,4477.1,4.857]
[1759884162207,0.0479,4478.2,4477.2,0.02233538]
[1759884162399,0.0479,4477.8,4476.3,0.4746]
[1759884162713,1.92,4478.4,4477.1,4.87933588]
[1759884163015,0.01,4478.9,4477.4,2.23340839]
[1759884163016,1.9679,4478.6,4477.4,2.23340839]
[1759884163219,1.9679,4478.6,4477.1,20.2725175]
[1759884163220,0.0479,4478.6,4477.5,2.55533389]
[1759884163378,0.0479,4478.6,4477.6,4.857]
[1759884163579,0.0479,4478.6,4477.7,0.02233289]
[1759884163895,2.475366,4478.1,4477.8,4.857]
[1759884164106,0.0479,4478.3,4477.8,4.857]
[1759884164480,0.60252435,4478.8,4477.8,4.857]
[1759884164481,0.0479,4478.7,4477.8,4.857]
[1759884165607,0.61252435,4478.9,4477.8,4.857]
[1759884165608,8.469844,4478.3,4477.8,4.857]
[1759884165800,1.92,4478.4,4477.8,4.857]
[1759884165801,0.0479,4478.1,4477.8,4.857]
[1759884166106,0.0479,4478.1,4477.1,13.77358391]
[1759884166310,0.0479,4478.1,4477.2,0.02233538]
[1759884166478,0.0479,4478.1,4477.2,4.87933538]
[1759884166679,0.0479,4478.1,4477.2,4.857]
[1759884166680,0.1112,4477.4,4477.2,4.857]
[1759884167010,0.1112,4477.4,4477.3,0.02233488]
[1759884167577,0.1112,4477.4,4477.2,4.857]
[1759884167777,0.1112,4477.4,4477.3,4.857]
[1759884168281,0.1112,4477.4,4477.1,11.54]
[1759884168282,0.0479,4477.4,4477.1,11.54]
[1759884168507,0.0479,4477.3,4477.2,4.857]
[1759884168897,0.0479,4477.3,4477.1,11.54]
[1759884169303,0.60252435,4477.7,4477.2,4.857]
[1759884169304,1.92,4477.5,4477.2,4.857]
[1759884169494,17.417863,4477.4,4477.2,4.857]
[1759884169847,0.60252435,4477.7,4477.2,4.857]
[1759884169848,13.02598012,4477.3,4477.2,4.857]
[1759884170138,13.02598012,4477.3,4477.1,11.54]
[1759884170319,13.02598012,4477.3,4477.2,4.857]
[1759884170320,15.433958,4477.3,4477.2,4.857]
[1759884170520,15.91386839,4477.3,4477.2,4.857]
[1759884170732,19.792057,4477.2,4477.1,11.54]
[1759884170896,11.25493539,4477.2,4477.1,16.397]
[1759884171301,11.25493539,4477.2,4477.1,13.864]
[1759884171504,11.25493539,4477.2,4477.1,16.397]
[1759884171705,12.60831039,4477.2,4477.1,16.397]
[1759884172316,13.21083474,4477.2,4477.1,16.397]
[1759884172723,14.34291474,4477.2,4477.1,11.54]
[1759884172934,13.31115774,4477.2,4477.1,16.397]
[1759884173816,13.54251774,4477.2,4477.1,16.397]
[1759884174125,13.54251774,4477.2,4477.1,11.54]
[1759884174126,12.93999339,4477.2,4477.1,11.54]
[1759884174303,12.93999339,4477.2,4477.1,16.397]
[1759884174709,31.2118652,4477.2,4477.1,13.864]
[1759884175027,18.21547884,4477.2,4477.1,16.397]
[1759884175329,2.44781039,4477.2,4477.1,16.397]
[1759884175633,4.02397,4477.2,4477.1,16.397]
[1759884175809,2.44781039,4477.2,4477.1,16.397]
[1759884175999,6.52480039,4477.2,4477.1,16.397]
[1759884176198,4.58688339,4477.2,4477.1,16.397]
[1759884176620,4.58688339,4477.2,4477.1,11.54]
[1759884176821,33.24831134,4477.2,4477.1,11.54]
[1759884177020,22.02165334,4477.2,4477.1,16.397]
[1759884177223,5.18970339,4477.2,4477.1,16.397]
[1759884177431,2.44781039,4477.2,4477.1,16.397]
[1759884177620,1.9679,4477.2,4477.1,16.397]
[1759884178128,4.648252,4477.2,4477.1,16.397]
[1759884178298,3.04785886,4477.2,4477.1,16.397]
[1759884178500,1.92,4477.2,4477.1,16.397]
[1759884178994,2.23305076,4478.2,4477.1,16.397]
[1759884178995,0.47991039,4477.4,4477.2,2.23353881]
[1759884179213,0.1112,4477.4,4477.3,2.55533488]
[1759884179940,0.1112,4477.4,4477.3,2.533]
[1759884180432,0.1112,4477.8,4477.7,2.23328941]
[1759884180637,0.1112,4477.8,4477.7,4.76628941]
[1759884180801,0.1112,4477.8,4477.7,2.533]
[1759884181345,0.1112,4477.8,4477.7,2.23328941]
[1759884181630,1e-08,4477.9,4477.7,5.76789942]
[1759884181936,1e-08,4477.9,4477.8,4.857]
[1759884182436,0.11120001,4477.9,4477.8,7.09023953]
[1759884182597,0.11120001,4477.9,4477.8,4.857]
[1759884184556,0.11120001,4477.9,4477.0,0.0344]
[1759884185049,0.11120001,4477.9,4477.2,7.09052895]
[1759884185237,0.11120001,4477.9,4477.2,4.857]
[1759884185436,0.11120001,4477.9,4477.1,13.88478772]
[1759884185644,0.11120001,4477.9,4477.3,2.23344155]
[1759884185853,0.11120001,4477.9,4477.8,2.23323953]
[1759884186062,0.11120001,4477.9,4477.8,4.76623953]
[1759884186362,0.11320001,4477.9,4477.8,4.76623953]
[1759884187232,0.11320001,4477.9,4477.8,2.533]
[1759884187822,0.11320001,4477.9,4477.8,4.857]
[1759884188136,0.11320001,4477.9,4477.8,7.09023953]
[1759884188537,0.00200001,4477.9,4477.8,20.00449686]
[1759884188726,0.00200001,4477.9,4477.8,20.74929686]
[1759884189037,0.00200001,4477.9,4477.8,21.34934533]
[1759884190119,0.01,4478.9,4478.8,2.23274091]
[1759884190325,0.01,4478.9,4478.8,4.89826831]
[1759884190637,0.01,4478.9,4478.8,4.856]
[1759884191964,0.01,4478.9,4478.2,0.1112]
[1759884192442,0.1112,4478.5,4477.8,11.6512]
[1759884192641,0.1112,4478.5,4477.9,7.11151188]
[1759884192837,0.1112,4478.5,4477.8,11.6512]
[1759884193172,0.1112,4478.0,4477.8,11.54]
[1759884193351,0.1112,4478.0,4477.9,4.856]
[1759884193730,0.1591,4478.0,4477.9,2.323]
[1759884193961,0.1591,4478.0,4477.8,11.54]
[1759884194163,0.1591,4478.0,4477.9,4.855]
[1759884194335,0.1112,4478.0,4477.9,4.855]
[1759884195758,0.1112,4478.0,4477.8,11.54]
[1759884195947,0.0479,4477.9,4477.8,11.54]
[1759884196450,0.0479,4477.9,4477.8,16.396]
[1759884196955,18.132593,4477.9,4477.8,16.396]
[1759884197534,18.132593,4477.9,4477.8,11.54]
[1759884197728,18.132593,4477.9,4477.8,16.396]
[1759884197729,6.328184,4477.9,4477.8,16.396]
[1759884198030,6.328184,4477.9,4477.8,13.864]
[1759884198231,6.80791197,4477.9,4477.8,16.396]
[1759884198630,6.80791197,4477.9,4477.8,11.54]
[1759884198840,19.15217397,4477.9,4477.8,16.396]
[1759884199040,1.92,4477.9,4477.8,16.396]
[1759884199263,1.9679,4477.9,4477.8,16.396]
[1759884201043,12.925635,4477.9,4477.8,11.54]
[1759884201242,11.38627139,4477.9,4477.8,16.396]
[1759884201570,5.39137639,4477.9,4477.8,16.396]
[1759884201952,2.44762139,4477.9,4477.8,16.396]
[1759884202172,11.892149,4477.9,4477.8,16.396]
[1759884202350,12.37187039,4477.9,4477.8,16.396]
[1759884202679,12.37187039,4477.9,4477.8,16.398]
[1759884203043,32.44762139,4477.9,4477.8,16.398]
[1759884203476,18.27521739,4477.9,4477.8,16.398]
[1759884203674,17.58030139,4477.9,4477.8,11.54]
[1759884203855,16.57331939,4477.9,4477.8,16.398]
[1759884204056,23.37220639,4477.9,4477.8,16.398]
[1759884204453,23.37220639,4477.9,4477.8,16.399]
[1759884204648,23.37420639,4477.9,4477.8,16.399]
[1759884205055,26.36034739,4477.9,4477.8,16.399]
[1759884205269,26.96039586,4477.9,4477.8,16.399]
[1759884205975,25.62172786,4477.9,4477.8,16.399]
[1759884206178,25.02167939,4477.9,4477.8,16.399]
[1759884206381,25.62172786,4477.9,4477.8,16.399]
[1759884206575,24.62172786,4477.9,4477.8,16.399]
[1759884207185,11.95471786,4477.9,4477.8,16.399]
[1759884208185,20.78031386,4477.9,4477.8,11.541]
[1759884208480,20.18026539,4477.9,4477.8,16.399]
[1759884208982,22.41345505,4477.9,4477.8,11.541]
[1759884209286,2.40172139,4477.9,4477.8,16.399]
[1759884209460,1.922,4477.9,4477.8,16.399]
[1759884210187,0.002,4477.9,4477.8,18.63223953]
[1759884210355,0.002,4477.9,4477.8,18.0389]
[1759884210757,0.002,4477.9,4477.8,20.27213953]
[1759884211651,0.002,4477.9,4477.8,18.0389]
[1759884211854,0.002,4477.9,4477.8,11.541]
[1759884212083,0.0499,4477.9,4477.8,16.4]
[1759884212678,0.0499,4477.9,4477.8,11.541]
[1759884212879,0.0499,4477.9,4477.8,16.4]
[1759884213287,0.0499,4477.9,4477.8,11.541]
[1759884213461,0.0499,4477.9,4477.8,16.4]
[1759884213790,29.14734634,4477.9,4477.8,16.4]
[1759884213981,28.25576673,4477.9,4477.8,16.4]
[1759884214175,27.65512939,4477.9,4477.8,16.4]
[1759884214994,27.77512939,4477.9,4477.8,16.4]
[1759884215190,24.29673939,4477.9,4477.8,16.4]
[1759884215851,24.09483039,4477.9,4477.8,16.4]
[1759884216456,20.89974939,4477.9,4477.8,16.4]
[1759884216682,20.89974939,4477.9,4477.8,16.399]
[1759884216886,24.06952439,4477.9,4477.8,16.399]
[1759884217089,24.67016173,4477.9,4477.8,11.541]
[1759884217286,24.67016173,4477.9,4477.8,16.399]
[1759884217987,30.38524273,4477.9,4477.8,16.399]
[1759884218188,29.78460539,4477.9,4477.8,16.399]
[1759884218887,29.38523621,4477.9,4477.8,16.399]
[1759884219086,28.78460539,4477.9,4477.8,16.399]
[1759884219868,32.36009039,4477.9,4477.8,16.399]
[1759884220288,25.96009039,4477.9,4477.8,16.399]
[1759884220985,32.44962139,4477.9,4477.8,16.399]
[1759884221483,33.25012234,4477.9,4477.8,11.541]
[1759884221684,34.68281105,4477.9,4477.8,15.19205588]
[1759884221893,2.44962139,4477.9,4477.8,15.19205588]
[1759884222098,34.68281105,4477.9,4477.8,15.19205588]
[1759884222299,34.68281105,4477.9,4477.8,13.98205588]
[1759884222917,4.47325939,4477.9,4477.8,13.98205588]
[1759884223086,5.01125939,4477.9,4477.8,13.98205588]
[1759884223289,8.44846224,4477.9,4477.8,13.98205588]
[1759884223507,6.21527258,4477.9,4477.8,13.98205588]
[1759884224014,21.77918055,4477.9,4477.8,13.98205588]
[1759884224321,21.24188055,4477.9,4477.8,13.98205588]
[1759884224823,18.76551455,4477.9,4477.8,13.98205588]
[1759884225005,3.86266155,4477.9,4477.8,13.98205588]
[1759884225192,20.10433555,4477.9,4477.8,13.98205588]
[1759884225625,18.84850355,4477.9,4477.8,13.98205588]
[1759884225813,19.87768002,4477.9,4477.8,13.98105588]
[1759884225989,34.89183802,4477.9,4477.8,13.98105588]
[1759884227108,33.60930805,4477.9,4477.8,13.98105588]
[1759884227422,33.81836641,4477.9,4477.8,13.98105588]
[1759884227714,33.81836641,4477.9,4477.8,9.12405588]
[1759884227927,33.81836641,4477.9,4477.8,13.98105588]
[1759884228224,33.72667616,4477.9,4477.8,13.98105588]
[1759884228411,31.92667616,4477.9,4477.8,13.98105588]
[1759884228717,19.71109516,4477.9,4477.8,13.98105588]
[1759884229224,33.21449116,4477.9,4477.8,13.98105588]
[1759884230024,34.89185616,4477.9,4477.8,13.98105588]
[1759884230321,35.52545616,4477.9,4477.8,5.28170093]
[1759884230628,35.52545616,4477.9,4477.8,2.76170849]
[1759884230788,35.64212149,4477.9,4477.8,0.22770849]
[1759884231138,35.64212149,4477.9,4477.8,0.48470849]
[1759884231793,24.57071438,4477.9,4477.8,0.48470849]
[1759884231991,5.64204782,4477.9,4477.8,0.48470849]
[1759884232204,35.64204782,4477.9,4477.8,0.48470849]
[1759884232401,34.89178249,4477.9,4477.8,0.48470849]
[1759884233435,34.89178249,4477.9,4477.8,0.22770849]
[1759884233595,35.52538249,4477.9,4477.8,0.22770849]
[1759884233794,35.52538249,4477.9,4477.8,0.48470849]
[1759884234291,35.52538249,4477.9,4477.8,2.76170849]
[1759884234522,35.64204522,4477.9,4477.8,2.76170849]
[1759884234729,35.64204522,4477.9,4477.8,0.22770849]
[1759884234928,35.64204522,4477.9,4477.8,2.76170849]
[1759884236508,37.2448752,4477.9,4477.8,2.76170849]
[1759884236826,37.2448752,4477.9,4477.8,1.55463637]
[1759884237211,7.2448752,4477.9,4477.8,1.55463637]
[1759884237406,37.2448752,4477.9,4477.8,1.55463637]
[1759884238239,36.6112752,4477.9,4477.8,1.55463637]
[1759884238442,32.86450349,4477.9,4477.8,1.55463637]
[1759884239039,2.23343904,4477.4,4477.3,0.001]
[1759884239226,2.23343904,4477.4,4477.3,2.325]
[1759884239227,34.36241048,4477.4,4477.3,2.325]
[1759884239433,11.95294409,4477.4,4477.3,2.366]
[1759884239629,9.58529283,4477.4,4477.3,2.366]
[1759884239856,10.38640037,4477.4,4477.3,2.366]
[1759884240008,7.23782983,4477.4,4477.3,2.366]
[1759884240208,4.63130093,4477.4,4477.3,2.366]
[1759884240529,2.94623283,4477.4,4477.3,8.026]
[1759884240847,2.93709539,4477.4,4477.3,8.026]
[1759884241139,0.68838147,4477.4,4477.3,8.026]
[1759884241343,10.07202508,4477.4,4477.3,5.661]
[1759884241509,10.55174647,4477.4,4477.3,5.661]
[1759884241845,12.78518551,4477.4,4477.3,10.521]
[1759884242028,12.78518551,4477.4,4477.3,5.661]
[1759884242231,36.09226638,4477.4,4477.3,10.521]
[1759884242425,32.65628147,4477.4,4477.3,10.521]
[1759884242746,34.88972051,4477.4,4477.3,10.521]
[1759884244060,36.09244194,4477.4,4477.3,10.521]
[1759884244430,43.21244194,4477.4,4477.3,10.521]
[1759884245056,42.00972051,4477.4,4477.3,7.985]
[1759884245262,42.00972051,4477.4,4477.3,5.661]
[1759884245653,42.00972051,4477.4,4477.3,10.521]
[1759884246068,42.64332051,4477.4,4477.3,5.661]
[1759884246273,42.64332051,4477.4,4477.3,4.576311]
[1759884246835,42.7706265,4477.4,4477.3,4.576311]
[1759884247584,42.88729026,4477.4,4477.3,4.576311]
[1759884247764,42.88729026,4477.4,4477.3,2.040311]
[1759884247990,44.49012024,4477.4,4477.3,1.60233876]
[1759884248149,34.7871887,4477.1,4477.0,0.0344]
[1759884248348,42.38691009,4477.1,4477.0,0.0344]
[1759884248685,42.64365757,4477.1,4477.0,0.0764]
[1759884249167,43.22675171,4477.1,4477.0,0.0764]
[1759884249347,14.83076026,4477.1,4477.0,0.0764]
[1759884249548,44.83076026,4477.1,4477.0,0.0764]
[1759884249854,43.22675171,4477.1,4477.0,0.0764]
[1759884250576,44.83039149,4477.1,4477.0,0.0764]
[1759884251962,44.83039149,4477.1,4476.4,2.324]
[1759884251963,34.78748808,4476.5,4476.4,2.324]
[1759884252162,36.67873355,4476.5,4476.4,4.86]
[1759884252379,35.52395695,4476.5,4476.4,4.86]
[1759884252547,36.72663355,4476.5,4476.4,4.86]
[1759884253386,35.52395695,4476.5,4476.4,4.86]
[1759884254081,36.72663355,4476.5,4476.4,4.86]
[1759884255392,2.5536,4476.4,4475.2,2.03]
[1759884255564,2.5536,4476.4,4476.0,2.325]
[1759884255565,34.78763779,4476.2,4476.0,2.325]
[1759884255885,35.47620666,4476.2,4475.2,2.03]
[1759884256083,42.64410666,4476.2,4475.8,2.325]
[1759884256287,31.92,4475.3,4475.2,2.03]
[1759884256486,34.84305594,4475.3,4475.2,2.03]
[1759884256686,32.65646887,4475.3,4475.2,2.03]
[1759884256877,32.65646887,4475.3,4475.2,6.891]
[1759884257454,35.69264174,4475.3,4475.2,6.891]
[1759884257687,34.89095594,4475.3,4475.2,6.891]
[1759884257892,35.6924987,4475.3,4475.2,6.891]
[1759884258561,35.6924987,4475.3,4475.2,2.03]
[1759884258762,34.89095594,4475.3,4475.2,6.302]
[1759884258978,35.52455594,4475.3,4475.2,2.03]
[1759884259171,36.7262856,4475.3,4475.2,2.03]
[1759884259371,36.7262856,4475.3,4475.2,6.302]
[1759884259577,36.7262856,4475.3,4475.2,4.566]
[1759884260201,36.7260141,4475.3,4475.2,4.566]
[1759884261091,36.72576233,4475.3,4475.2,2.03]
[1759884261415,36.72576233,4475.3,4475.2,3.977]
[1759884261909,11.31935626,4475.3,4475.2,3.977]
[1759884262110,4.1410711,4475.3,4475.2,3.977]
[1759884262497,6.06094857,4475.3,4475.2,3.977]
[1759884262705,7.76536357,4475.3,4475.2,3.977]
[1759884262901,7.76536357,4475.3,4475.2,2.03]
[1759884263106,7.76536357,4475.3,4475.2,6.893]
[1759884263306,8.36577262,4475.3,4475.2,6.893]
[1759884263598,6.23628957,4475.3,4475.2,6.893]
[1759884264714,7.29251457,4475.3,4475.2,6.893]
[1759884265217,7.29251457,4475.3,4475.2,2.03]
[1759884265509,7.89292362,4475.3,4475.2,6.893]
[1759884265712,19.58773662,4475.3,4475.2,4.355]
[1759884265904,21.22181464,4475.3,4475.2,6.893]
[1759884266104,21.22181464,4475.3,4475.2,2.03]
[1759884266479,21.22181464,4475.3,4475.2,6.893]
[1759884266683,34.89058164,4475.3,4475.2,6.893]
[1759884267113,32.65609457,4475.3,4475.2,2.03]
[1759884267286,23.93330457,4475.3,4475.2,6.302]
[1759884267485,26.16779164,4475.3,4475.2,6.302]
[1759884267686,32.9699953,4475.3,4475.2,2.03]
[1759884267907,32.80297564,4475.3,4475.2,2.03]
[1759884268116,32.80297564,4475.3,4475.2,6.302]
[1759884268726,42.64418164,4475.3,4475.2,2.03]
[1759884269016,42.64418164,4475.3,4475.2,6.893]
[1759884269583,25.73950057,4475.3,4475.2,6.893]
[1759884269801,13.96772145,4475.3,4475.2,6.893]
[1759884270213,13.36737257,4475.3,4475.2,6.893]
[1759884270480,13.36737953,4475.3,4475.2,6.893]
[1759884270681,16.23776253,4475.3,4475.2,6.893]
[1759884271295,16.23776253,4475.3,4475.2,2.03]
[1759884271296,18.4722496,4475.3,4475.2,2.03]
[1759884271510,18.4722496,4475.3,4475.2,6.893]
[1759884271787,42.0105886,4475.3,4475.2,2.03]
[1759884271987,42.0105886,4475.3,4475.2,6.302]
[1759884272319,42.0105886,4475.3,4475.2,6.893]
[1759884272885,42.0107621,4475.3,4475.2,2.03]
[1759884273090,43.21222026,4475.3,4475.2,6.893]
[1759884273308,43.21222026,4475.3,4475.2,6.892]
[1759884273726,43.21222026,4475.3,4475.2,2.03]
[1759884273959,42.6443621,4475.3,4475.2,4.567]
[1759884274113,42.6443621,4475.3,4475.2,6.892]
[1759884274311,42.6443621,4475.3,4475.2,2.03]
[1759884274513,42.6443621,4475.3,4475.2,6.302]
[1759884274814,42.6443621,4475.3,4475.2,3.21394947]
[1759884275248,42.6443621,4475.3,4475.2,2.537]
[1759884275741,12.6443621,4475.3,4475.2,2.537]
[1759884276039,34.899337,4475.2,4475.1,2.336]
[1759884276207,35.63561203,4475.2,4475.1,4.873]
[1759884277845,35.75233378,4475.2,4475.1,4.873]
[1759884278524,33.51779678,4475.2,4475.1,4.873]
[1759884278719,2.88419678,4475.2,4475.1,4.873]
[1759884279020,2.88419678,4475.2,4475.1,5.543]
[1759884279021,4.85518991,4475.2,4475.1,5.543]
[1759884279334,3.57901803,4475.2,4475.1,5.543]
[1759884279920,10.13133603,4475.2,4475.1,0.681]
[1759884280119,10.13133603,4475.2,4475.1,5.543]
[1759884280540,5.84451603,4475.2,4475.1,5.543]
[1759884280837,6.89960003,4475.2,4475.1,5.543]
[1759884281343,6.69094639,4475.2,4475.1,5.543]
[1759884281542,5.13747839,4475.2,4475.1,5.543]
[1759884281914,8.44545839,4475.2,4475.1,5.543]
[1759884282935,7.21695439,4475.2,4475.1,5.543]
[1759884283441,6.50391139,4475.2,4475.1,5.543]
[1759884283858,2.55882139,4475.2,4475.1,5.543]
[1759884284143,7.39101607,4475.2,4475.1,5.543]
[1759884284446,2.72000007,4475.2,4475.1,5.543]
[1759884284816,14.76861232,4475.2,4475.1,5.543]
[1759884285017,14.72744671,4475.2,4475.1,5.543]
[1759884285313,12.00644671,4475.2,4475.1,5.543]
[1759884285510,11.18061207,4475.2,4475.1,0.681]
[1759884285945,27.87659007,4475.2,4475.1,3.745]
[1759884286352,26.63167307,4475.2,4475.1,3.745]
[1759884286722,26.38670107,4475.2,4475.1,0.681]
[1759884286919,24.94567107,4475.2,4475.1,5.542]
[1759884287939,26.27619607,4475.2,4475.1,5.542]
[1759884288863,28.51073307,4475.2,4475.1,0.681]
[1759884289037,36.20589425,4475.2,4475.1,3.88]
[1759884289352,26.71980307,4475.2,4475.1,3.88]
[1759884289559,30.15779725,4475.2,4475.1,3.88]
[1759884290162,32.39555025,4475.2,4475.1,3.88]
[1759884290322,31.39555025,4475.2,4475.1,3.88]
[1759884290963,33.57455025,4475.2,4475.1,3.88]
[1759884291645,32.73955025,4475.2,4475.1,3.88]
[1759884292171,5.78650207,4475.2,4475.1,3.88]
[1759884292328,6.47878211,4475.2,4475.1,3.88]
[1759884292523,2.60880007,4475.2,4475.1,3.88]
[1759884292729,5.21241968,4475.2,4475.1,3.88]
[1759884293060,12.00412107,4475.2,4475.1,3.88]
[1759884293254,10.89721507,4475.2,4475.1,3.88]
[1759884293459,9.05527007,4475.2,4475.1,3.88]
[1759884293841,2.60880007,4475.2,4475.1,3.88]
[1759884294149,9.39477168,4475.2,4475.1,3.88]
[1759884294342,9.10085707,4475.2,4475.1,3.88]
[1759884294657,9.10285707,4475.2,4475.1,3.88]
[1759884294856,7.69105007,4475.2,4475.1,3.88]
[1759884295060,9.89046707,4475.2,4475.1,3.88]
[1759884295842,7.69010707,4475.2,4475.1,3.88]
[1759884296061,8.32246507,4475.2,4475.1,3.88]
[1759884296266,8.92483456,4475.2,4475.1,3.88]
[1759884296504,7.87651956,4475.2,4475.1,3.88]
[1759884296866,3.21316956,4475.2,4475.1,3.88]
[1759884297168,6.30818617,4475.2,4475.1,3.88]
[1759884297469,6.83580756,4475.2,4475.1,3.88]
[1759884297891,3.26106956,4475.2,4475.1,3.88]
[1759884298114,6.40476217,4475.2,4475.1,3.88]
[1759884298311,5.46899156,4475.2,4475.1,3.88]
[1759884298872,3.26106956,4475.2,4475.1,3.88]
[1759884299098,4.93949217,4475.2,4475.1,3.88]
[1759884299281,5.41921356,4475.2,4475.1,3.88]